fUSD/lending_fUSD_20260605
["ID","MTS","AMOUNT","RATE_DAILY","PERIOD"]
[424155314,1780614653000,-150.83989396,0.00030535,2]
[424155347,1780614653000,-677.79194221,0.00030555,2]
[424155346,1780614653000,-428.23707371,0.00030555,2]
[424155343,1780614653000,-425.61616874,0.00030555,2]
[424155349,1780614653000,-415.20961672,0.00030555,2]
[424155344,1780614653000,-736.962347,0.00030555,2]
[424155348,1780614653000,-336.43652496,0.00030555,2]
[424155353,1780614653000,-711.71938808,0.00030555,2]
[424155352,1780614653000,-151.46468938,0.00030555,2]
[424155363,1780614653000,-150.0,0.00030728,2]
[424155364,1780614653000,-257.0,0.00030728,2]
[424155359,1780614653000,-907.0,0.00030672,2]
[424155354,1780614653000,-157.50109676,0.00030555,2]
[424155357,1780614653000,-200.91472526,0.00030555,2]
[424155342,1780614653000,-673.6682992,0.00030555,2]
[424155358,1780614653000,-1004.48,0.0003058,7]
[424155355,1780614653000,-489.47358659,0.00030555,2]
[424155360,1780614653000,-179.20247452,0.00030709,2]
[424155356,1780614653000,-452.28205859,0.00030555,2]
[424155361,1780614653000,-150.0,0.00030728,2]
[424155366,1780614653000,-1721.96,0.00030735,7]
[424155365,1780614653000,-1004.48,0.00030735,7]
[424155367,1780614653000,-150.0,0.00030868,30]
[424155369,1780614653000,-3117.0,0.00030974,5]
[424155370,1780614653000,-877.13,0.00031,14]
[424155371,1780614653000,-250.0,0.00031004,7]
[424155372,1780614653000,-150.0,0.00031011,2]
[424155368,1780614653000,-1004.48,0.00030889,7]
[424155309,1780614653000,-283.29765806,0.00030535,2]
[424155362,1780614653000,-150.0,0.00030728,2]
[424155345,1780614653000,-411.71942213,0.00030555,2]
[424155299,1780614653000,-196.48884048,0.00030535,2]
[424155339,1780614653000,-431.89152006,0.00030555,2]
[424155341,1780614653000,-555.34353453,0.00030555,2]
[424155324,1780614653000,-459.85780194,0.00030554,2]
[424155316,1780614653000,-154.40952418,0.00030535,2]
[424155321,1780614653000,-206.62267958,0.00030554,2]
[424155315,1780614653000,-590.77570088,0.00030535,2]
[424155317,1780614653000,-317.78950456,0.00030535,2]
[424155322,1780614653000,-201.67035082,0.00030554,2]
[424155313,1780614653000,-584.8261476,0.00030535,2]
[424155323,1780614653000,-673.53477918,0.00030554,2]
[424155319,1780614653000,-413.24535916,0.00030535,2]
[424155320,1780614653000,-297.42160564,0.00030535,2]
[424155325,1780614653000,-636.09670876,0.00030554,2]
[424155327,1780614653000,-399.97725993,0.00030555,2]
[424155326,1780614653000,-226.1410293,0.00030554,2]
[424155318,1780614653000,-565.61783199,0.00030535,2]
[424155333,1780614653000,-610.83955736,0.00030555,2]
[424155338,1780614653000,-413.78986884,0.00030555,2]
[424155340,1780614653000,-638.17001086,0.00030555,2]
[424155350,1780614653000,-159.83403232,0.00030555,2]
[424155334,1780614653000,-414.00286046,0.00030555,2]
[424155335,1780614653000,-581.63878933,0.00030555,2]
[424155331,1780614653000,-370.92585577,0.00030555,2]
[424155351,1780614653000,-436.30202957,0.00030555,2]
[424155328,1780614653000,-364.0367666,0.00030555,2]
[424155330,1780614653000,-514.93560062,0.00030555,2]
[424155337,1780614653000,-367.38709948,0.00030555,2]
[424155329,1780614653000,-778.40461431,0.00030555,2]
[424155336,1780614653000,-601.35564042,0.00030555,2]
[424155332,1780614653000,-154.40514762,0.00030555,2]
[424155410,1780614654000,-151.0,0.00031447,7]
[424155407,1780614654000,-183.0,0.00031387,30]
[424155409,1780614654000,-1760.0,0.00031387,30]
[424155411,1780614654000,-151.0,0.00031447,7]
[424155404,1780614654000,-332.0,0.00031377,30]
[424155406,1780614654000,-489.0,0.00031387,30]
[424155399,1780614654000,-443.0,0.00031369,30]
[424155400,1780614654000,-245.0,0.00031369,30]
[424155405,1780614654000,-279.0,0.00031387,30]
[424155396,1780614654000,-437.0,0.00031369,30]
[424155408,1780614654000,-314.0,0.00031387,30]
[424155413,1780614654000,-151.0,0.00031447,7]
[424155430,1780614654000,-1273.0,0.0003166,2]
[424155417,1780614654000,-246.517908,0.00031447,7]
[424155414,1780614654000,-246.517908,0.00031447,7]
[424155416,1780614654000,-246.517908,0.00031447,7]
[424155419,1780614654000,-499.99,0.00031478,120]
[424155429,1780614654000,-525.0,0.0003166,2]
[424155418,1780614654000,-500.0,0.00031447,14]
[424155426,1780614654000,-502.61,0.000316,7]
[424155421,1780614654000,-250.99567423,0.00031507,30]
[424155422,1780614654000,-883.09,0.00031535,120]
[424155420,1780614654000,-1707.67,0.000315,7]
[424155395,1780614654000,-317.14,0.0003132,2]
[424155415,1780614654000,-246.517908,0.00031447,7]
[424155398,1780614654000,-2842.0,0.00031369,30]
[424155387,1780614654000,-179.20247452,0.00031144,2]
[424155397,1780614654000,-258.0,0.00031369,30]
[424155376,1780614654000,-832.48518885,0.000311,2]
[424155377,1780614654000,-437.39384537,0.00031132,7]
[424155374,1780614654000,-466.05324864,0.0003109,21]
[424155373,1780614654000,-504.0,0.00031024,6]
[424155375,1780614654000,-816.43546471,0.000311,2]
[424155378,1780614654000,-841.91847398,0.00031136,2]
[424155384,1780614654000,-797.71251357,0.00031136,2]
[424155385,1780614654000,-842.085374,0.00031136,2]
[424155383,1780614654000,-763.5494467,0.00031136,2]
[424155380,1780614654000,-151.0,0.00031136,7]
[424155381,1780614654000,-151.0,0.00031136,7]
[424155394,1780614654000,-836.66,0.0003132,2]
[424155424,1780614654000,-152.0,0.00031586,30]
[424155382,1780614654000,-151.0,0.00031136,7]
[424155388,1780614654000,-1179.31,0.000312,7]
[424155379,1780614654000,-795.12088595,0.00031136,2]
[424155389,1780614654000,-1000.0,0.000312,7]
[424155390,1780614654000,-160.0,0.000312,4]
[424155392,1780614654000,-200.0,0.00031231,2]
[424155402,1780614654000,-557.0,0.00031369,30]
[424155403,1780614654000,-995.0,0.00031377,30]
[424155393,1780614654000,-2000.0,0.0003132,2]
[424155401,1780614654000,-2393.0,0.00031369,30]
[424155391,1780614654000,-288.489914,0.000312,4]
[424155386,1780614654000,-889.6492351,0.00031136,2]
[424155428,1780614654000,-1357.0,0.0003166,2]
[424155412,1780614654000,-151.0,0.00031447,7]
[424155425,1780614654000,-150.0,0.00031598,30]
[424155468,1780614654000,-437.0,0.00032369,30]
[424155464,1780614654000,-522.63397015,0.0003224,2]
[424155459,1780614654000,-160.0,0.000322,8]
[424155463,1780614654000,-7048.0,0.0003224,2]
[424155458,1780614654000,-1179.31,0.000322,7]
[424155462,1780614654000,-3745.4,0.0003221,5]
[424155461,1780614654000,-160.0,0.000322,7]
[424155460,1780614654000,-160.0,0.000322,7]
[424155466,1780614654000,-1707.67,0.000323,7]
[424155467,1780614654000,-500.0,0.00032356,2]
[424155465,1780614654000,-456.0,0.0003224,2]
[424155470,1780614654000,-2842.0,0.00032369,30]
[424155472,1780614654000,-245.0,0.00032369,30]
[424155473,1780614654000,-2393.0,0.00032369,30]
[424155475,1780614654000,-995.0,0.00032377,30]
[424155474,1780614654000,-557.0,0.00032369,30]
[424155476,1780614654000,-332.0,0.00032377,30]
[424155477,1780614654000,-279.0,0.00032387,30]
[424155478,1780614654000,-489.0,0.00032387,30]
[424155481,1780614654000,-1760.0,0.00032387,30]
[424155483,1780614654000,-150.0,0.00032562,2]
[424155480,1780614654000,-314.0,0.00032387,30]
[424155482,1780614654000,-179.20247452,0.00032448,2]
[424155479,1780614654000,-183.0,0.00032387,30]
[424155423,1780614654000,-179.20247452,0.00031578,2]
[424155469,1780614654000,-258.0,0.00032369,30]
[424155457,1780614654000,-295.15,0.00032192,2]
[424155471,1780614654000,-443.0,0.00032369,30]
[424155456,1780614654000,-179.20247452,0.00032013,2]
[424155427,1780614654000,-150.0,0.00031644,2]
[424155449,1780614654000,-979.72255765,0.00031971,2]
[424155431,1780614654000,-1226.0,0.00031663,2]
[424155433,1780614654000,-6070.0,0.00031663,2]
[424155435,1780614654000,-4401.638,0.00031779,30]
[424155434,1780614654000,-227.0,0.00031738,2]
[424155436,1780614654000,-245.968,0.00031779,30]
[424155432,1780614654000,-3641.0,0.00031663,2]
[424155437,1780614654000,-504.0,0.00031801,7]
[424155438,1780614654000,-2000.0,0.00031897,2]
[424155441,1780614654000,-2000.0,0.00031897,2]
[424155439,1780614654000,-2000.0,0.00031897,2]
[424155442,1780614654000,-2000.0,0.00031897,2]
[424155440,1780614654000,-2000.0,0.00031897,2]
[424155454,1780614654000,-1010.5024488,0.00032009,2]
[424155444,1780614654000,-2000.0,0.00031897,2]
[424155450,1780614654000,-700.0,0.00032,2]
[424155446,1780614654000,-2000.0,0.00031897,2]
[424155445,1780614654000,-2000.0,0.00031897,2]
[424155447,1780614654000,-1159.0,0.00031897,2]
[424155453,1780614654000,-957.25501628,0.00032009,2]
[424155452,1780614654000,-1010.30216877,0.00032008,2]
[424155448,1780614654000,-12635.13,0.00031936,14]
[424155451,1780614654000,-200.0,0.00032006,2]
[424155455,1780614654000,-957.75047194,0.00032009,2]
[424155443,1780614654000,-2000.0,0.00031897,2]
[424155524,1780614655000,-504.0,0.00033356,8]
[424155518,1780614655000,-1707.67,0.000333,30]
[424155525,1780614655000,-437.0,0.00033369,30]
[424155529,1780614655000,-245.0,0.00033369,30]
[424155520,1780614655000,-1178.68586357,0.00033317,2]
[424155523,1780614655000,-1117.3755506,0.00033317,2]
[424155517,1780614655000,-1143.00965059,0.00033279,2]
[424155515,1780614655000,-186.04151345,0.00033246,2]
[424155519,1780614655000,-179.20247452,0.00033317,2]
[424155527,1780614655000,-2842.0,0.00033369,30]
[424155528,1780614655000,-443.0,0.00033369,30]
[424155522,1780614655000,-1178.9195236,0.00033317,2]
[424155521,1780614655000,-1116.797519,0.00033317,2]
[424155531,1780614655000,-557.0,0.00033369,30]
[424155551,1780614655000,-1179.31,0.000339,30]
[424155533,1780614655000,-332.0,0.00033377,30]
[424155532,1780614655000,-995.0,0.00033377,30]
[424155539,1780614655000,-151.0,0.00033387,7]
[424155537,1780614655000,-314.0,0.00033387,30]
[424155538,1780614655000,-1760.0,0.00033387,30]
[424155535,1780614655000,-489.0,0.00033387,30]
[424155536,1780614655000,-183.0,0.00033387,30]
[424155534,1780614655000,-279.0,0.00033387,30]
[424155552,1780614655000,-339.4217023,0.00033902,2]
[424155541,1780614655000,-500.0,0.00033592,120]
[424155540,1780614655000,-200.0,0.00033557,2]
[424155526,1780614655000,-258.0,0.00033369,30]
[424155542,1780614655000,-500.0,0.00033592,120]
[424155530,1780614655000,-2393.0,0.00033369,30]
[424155516,1780614655000,-186.04151345,0.00033246,2]
[424155489,1780614655000,-150.0,0.00032869,2]
[424155510,1780614655000,-200.0,0.00033159,10]
[424155543,1780614655000,-12635.13,0.00033641,30]
[424155484,1780614655000,-504.0,0.00032579,7]
[424155485,1780614655000,-4971.47303121,0.00032652,2]
[424155488,1780614655000,-150.0,0.00032802,2]
[424155486,1780614655000,-1000.0,0.000327,120]
[424155490,1780614655000,-150.0,0.00032869,2]
[424155487,1780614655000,-200.0,0.00032781,2]
[424155492,1780614655000,-150.0,0.00032869,2]
[424155499,1780614655000,-242.02,0.00032877,2]
[424155498,1780614655000,-150.0,0.00032869,2]
[424155502,1780614655000,-1000.0,0.00032877,120]
[424155501,1780614655000,-151.0,0.00032877,7]
[424155495,1780614655000,-150.0,0.00032869,2]
[424155500,1780614655000,-151.0,0.00032877,7]
[424155494,1780614655000,-150.0,0.00032869,2]
[424155491,1780614655000,-150.0,0.00032869,2]
[424155493,1780614655000,-150.0,0.00032869,2]
[424155497,1780614655000,-150.0,0.00032869,2]
[424155496,1780614655000,-150.0,0.00032869,2]
[424155503,1780614655000,-500.6324604,0.00032877,2]
[424155508,1780614655000,-571.96819715,0.00033123,120]
[424155514,1780614655000,-160.0,0.000332,9]
[424155504,1780614655000,-179.20247452,0.00032882,2]
[424155505,1780614655000,-274.05,0.000329,120]
[424155506,1780614655000,-334.11,0.00032904,2]
[424155507,1780614655000,-501.16,0.00032927,30]
[424155509,1780614655000,-477.56845309,0.00033123,120]
[424155513,1780614655000,-160.0,0.000332,9]
[424155511,1780614655000,-762.19,0.00033171,14]
[424155512,1780614655000,-160.0,0.000332,11]
[424155548,1780614655000,-150385.53117419,0.00033781,7]
[424155584,1780614655000,-400.0,0.00034453,2]
[424155549,1780614655000,-266.5838277,0.00033788,2]
[424155591,1780614655000,-735.98,0.0003461,120]
[424155585,1780614655000,-408.05579473,0.00034453,2]
[424155580,1780614655000,-314.0,0.00034387,30]
[424155583,1780614655000,-407.0,0.00034453,2]
[424155582,1780614655000,-3364.32,0.00034415,120]
[424155588,1780614655000,-152.0,0.00034519,3]
[424155587,1780614655000,-1781.45481,0.000345,120]
[424155589,1780614655000,-800.0,0.00034521,120]
[424155590,1780614655000,-877.13,0.000346,14]
[424155586,1780614655000,-400.45701247,0.00034453,2]
[424155593,1780614655000,-525.0,0.0003466,2]
[424155595,1780614655000,-1226.0,0.00034663,2]
[424155599,1780614655000,-1500.0,0.00034795,2]
[424155606,1780614655000,-559.35088554,0.00034888,2]
[424155605,1780614655000,-203.84771264,0.00034882,30]
[424155597,1780614655000,-6070.0,0.00034663,2]
[424155594,1780614655000,-1273.0,0.0003466,2]
[424155604,1780614655000,-936.0,0.00034879,3]
[424155598,1780614655000,-186.04151345,0.00034787,2]
[424155596,1780614655000,-3641.0,0.00034663,2]
[424155602,1780614655000,-10000.0,0.00034804,2]
[424155601,1780614655000,-2000.0,0.000348,7]
[424155603,1780614655000,-250.0,0.00034879,7]
[424155600,1780614655000,-800.0,0.00034795,120]
[424155608,1780614655000,-300.0,0.00034888,2]
[424155607,1780614655000,-575.82551977,0.00034888,2]
[424155610,1780614655000,-300.0,0.00034888,2]
[424155609,1780614655000,-300.0,0.00034888,2]
[424155544,1780614655000,-671.576668,0.00033641,2]
[424155592,1780614655000,-1357.0,0.0003466,2]
[424155581,1780614655000,-1760.0,0.00034387,30]
[424155611,1780614655000,-1097.41045792,0.00034888,2]
[424155575,1780614655000,-995.0,0.00034377,30]
[424155579,1780614655000,-183.0,0.00034387,30]
[424155550,1780614655000,-502.61,0.000338,7]
[424155545,1780614655000,-2000.0,0.000337,7]
[424155547,1780614655000,-4199.64510834,0.00033781,7]
[424155554,1780614655000,-671.53646064,0.0003398,2]
[424155564,1780614655000,-400.0,0.0003429,2]
[424155556,1780614655000,-504.0,0.00034134,9]
[424155560,1780614655000,-289.95,0.000342,14]
[424155562,1780614655000,-1000.0,0.00034247,120]
[424155558,1780614655000,-179.20247447,0.00034186,2]
[424155561,1780614655000,-476.87,0.00034247,7]
[424155553,1780614655000,-1109.84457657,0.00033939,4]
[424155557,1780614655000,-3745.4,0.00034182,7]
[424155563,1780614655000,-800.0,0.00034247,120]
[424155559,1780614655000,-150.0,0.0003419,2]
[424155546,1780614655000,-179.20247452,0.00033751,2]
[424155565,1780614655000,-566.9,0.0003429,2]
[424155566,1780614655000,-1707.67,0.000343,30]
[424155569,1780614655000,-258.0,0.00034369,30]
[424155574,1780614655000,-557.0,0.00034369,30]
[424155572,1780614655000,-245.0,0.00034369,30]
[424155577,1780614655000,-279.0,0.00034387,30]
[424155573,1780614655000,-2393.0,0.00034369,30]
[424155567,1780614655000,-200.0,0.00034332,2]
[424155576,1780614655000,-332.0,0.00034377,30]
[424155578,1780614655000,-489.0,0.00034387,30]
[424155571,1780614655000,-443.0,0.00034369,30]
[424155568,1780614655000,-437.0,0.00034369,30]
[424155555,1780614655000,-157.507623,0.00034,120]
[424155570,1780614655000,-2842.0,0.00034369,30]
[424155652,1780614656000,-300.0,0.00034888,2]
[424155655,1780614656000,-866.34655626,0.00034888,2]
[424155654,1780614656000,-300.0,0.00034888,2]
[424155653,1780614656000,-300.00000001,0.00034888,2]
[424155659,1780614656000,-300.0,0.00034888,2]
[424155657,1780614656000,-1801.30324439,0.00034888,2]
[424155646,1780614656000,-300.0,0.00034888,2]
[424155649,1780614656000,-300.0,0.00034888,2]
[424155648,1780614656000,-1079.85959652,0.00034888,2]
[424155658,1780614656000,-300.0,0.00034888,2]
[424155656,1780614656000,-951.1616413,0.00034888,2]
[424155647,1780614656000,-300.0,0.00034888,2]
[424155650,1780614656000,-344.73760311,0.00034888,2]
[424155651,1780614656000,-528.08660383,0.00034888,2]
[424155672,1780614656000,-300.0,0.00034888,2]
[424155663,1780614656000,-300.0,0.00034888,2]
[424155662,1780614656000,-300.0,0.00034888,2]
[424155661,1780614656000,-310.31256806,0.00034888,2]
[424155671,1780614656000,-512.46109187,0.00034888,2]
[424155669,1780614656000,-300.0,0.00034888,2]
[424155664,1780614656000,-1637.36858291,0.00034888,2]
[424155668,1780614656000,-595.33490838,0.00034888,2]
[424155665,1780614656000,-300.0,0.00034888,2]
[424155670,1780614656000,-300.0,0.00034888,2]
[424155667,1780614656000,-300.0,0.00034888,2]
[424155666,1780614656000,-300.0,0.00034888,2]
[424155674,1780614656000,-300.0,0.00034888,2]
[424155642,1780614656000,-300.0,0.00034888,2]
[424155685,1780614656000,-300.0,0.00034888,2]
[424155660,1780614656000,-300.0,0.00034888,2]
[424155645,1780614656000,-300.0,0.00034888,2]
[424155630,1780614656000,-300.0,0.00034888,2]
[424155639,1780614656000,-300.0,0.00034888,2]
[424155684,1780614656000,-300.64704916,0.00034888,2]
[424155612,1780614656000,-300.0,0.00034888,2]
[424155615,1780614656000,-300.0,0.00034888,2]
[424155613,1780614656000,-300.0,0.00034888,2]
[424155616,1780614656000,-300.0,0.00034888,2]
[424155618,1780614656000,-502.38913156,0.00034888,2]
[424155614,1780614656000,-300.0,0.00034888,2]
[424155617,1780614656000,-300.0,0.00034888,2]
[424155619,1780614656000,-300.0,0.00034888,2]
[424155631,1780614656000,-300.0,0.00034888,2]
[424155621,1780614656000,-300.0,0.00034888,2]
[424155632,1780614656000,-3206.33486172,0.00034888,2]
[424155620,1780614656000,-300.0,0.00034888,2]
[424155624,1780614656000,-300.0,0.00034888,2]
[424155623,1780614656000,-493.81396627,0.00034888,2]
[424155622,1780614656000,-300.0,0.00034888,2]
[424155628,1780614656000,-605.83002711,0.00034888,2]
[424155626,1780614656000,-300.0,0.00034888,2]
[424155625,1780614656000,-300.0,0.00034888,2]
[424155627,1780614656000,-300.0,0.00034888,2]
[424155629,1780614656000,-300.0,0.00034888,2]
[424155633,1780614656000,-300.0,0.00034888,2]
[424155637,1780614656000,-300.0,0.00034888,2]
[424155641,1780614656000,-300.0,0.00034888,2]
[424155635,1780614656000,-535.22980368,0.00034888,2]
[424155638,1780614656000,-302.47682808,0.00034888,2]
[424155636,1780614656000,-727.72406262,0.00034888,2]
[424155640,1780614656000,-301.27126872,0.00034888,2]
[424155644,1780614656000,-300.0,0.00034888,2]
[424155643,1780614656000,-300.0,0.00034888,2]
[424155673,1780614656000,-626.51557854,0.00034888,2]
[424155634,1780614656000,-1069.39140751,0.00034888,2]
[424155679,1780614656000,-300.0,0.00034888,2]
[424155714,1780614656000,-302.47682808,0.00034888,2]
[424155713,1780614656000,-300.0,0.00034888,2]
[424155716,1780614656000,-550.84087795,0.00034888,2]
[424155715,1780614656000,-300.0,0.00034888,2]
[424155721,1780614656000,-300.0,0.00034888,2]
[424155725,1780614656000,-1079.85959652,0.00034888,2]
[424155740,1780614656000,-1637.36858291,0.00034888,2]
[424155724,1780614656000,-300.0,0.00034888,2]
[424155718,1780614656000,-300.0,0.00034888,2]
[424155719,1780614656000,-300.0,0.00034888,2]
[424155722,1780614656000,-300.0,0.00034888,2]
[424155723,1780614656000,-300.0,0.00034888,2]
[424155717,1780614656000,-301.27126872,0.00034888,2]
[424155720,1780614656000,-300.0,0.00034888,2]
[424155712,1780614656000,-727.72406262,0.00034888,2]
[424155726,1780614656000,-300.0,0.00034888,2]
[424155730,1780614656000,-300.0,0.00034888,2]
[424155729,1780614656000,-300.0,0.00034888,2]
[424155731,1780614656000,-300.0,0.00034888,2]
[424155737,1780614656000,-310.31256806,0.00034888,2]
[424155732,1780614656000,-866.34655626,0.00034888,2]
[424155734,1780614656000,-1801.30324439,0.00034888,2]
[424155733,1780614656000,-951.1616413,0.00034888,2]
[424155727,1780614656000,-344.73760311,0.00034888,2]
[424155738,1780614656000,-300.0,0.00034888,2]
[424155736,1780614656000,-300.0,0.00034888,2]
[424155735,1780614656000,-300.0,0.00034888,2]
[424155739,1780614656000,-300.0,0.00034888,2]
[424155742,1780614656000,-300.0,0.00034888,2]
[424155678,1780614656000,-300.0,0.00034888,2]
[424155728,1780614656000,-528.08660383,0.00034888,2]
[424155708,1780614656000,-3206.33486172,0.00034888,2]
[424155741,1780614656000,-300.0,0.00034888,2]
[424155709,1780614656000,-300.0,0.00034888,2]
[424155675,1780614656000,-452.9387939,0.00034888,2]
[424155676,1780614656000,-300.0,0.00034888,2]
[424155677,1780614656000,-300.0,0.00034888,2]
[424155680,1780614656000,-300.0,0.00034888,2]
[424155682,1780614656000,-310.56504798,0.00034888,2]
[424155681,1780614656000,-485.24111317,0.00034888,2]
[424155683,1780614656000,-300.0,0.00034888,2]
[424155687,1780614656000,-300.0,0.00034888,2]
[424155707,1780614656000,-300.0,0.00034888,2]
[424155688,1780614656000,-300.0,0.00034888,2]
[424155689,1780614656000,-1097.41045792,0.00034888,2]
[424155694,1780614656000,-300.0,0.00034888,2]
[424155697,1780614656000,-300.0,0.00034888,2]
[424155698,1780614656000,-300.0,0.00034888,2]
[424155690,1780614656000,-300.0,0.00034888,2]
[424155686,1780614656000,-300.0,0.00034888,2]
[424155693,1780614656000,-300.0,0.00034888,2]
[424155705,1780614656000,-300.0,0.00034888,2]
[424155696,1780614656000,-300.0,0.00034888,2]
[424155704,1780614656000,-605.83002711,0.00034888,2]
[424155711,1780614656000,-535.22980368,0.00034888,2]
[424155710,1780614656000,-1069.39140751,0.00034888,2]
[424155700,1780614656000,-300.0,0.00034888,2]
[424155701,1780614656000,-300.0,0.00034888,2]
[424155702,1780614656000,-300.0,0.00034888,2]
[424155699,1780614656000,-493.81396627,0.00034888,2]
[424155703,1780614656000,-300.0,0.00034888,2]
[424155691,1780614656000,-300.0,0.00034888,2]
[424155692,1780614656000,-300.0,0.00034888,2]
[424155695,1780614656000,-300.0,0.00034888,2]
[424155706,1780614656000,-300.0,0.00034888,2]
[424155788,1780614657000,-504.0,0.00034911,10]
[424155781,1780614657000,-791.896713,0.00034897,60]
[424155780,1780614657000,-500.0,0.00034897,60]
[424155787,1780614657000,-2021.5546,0.00034908,2]
[424155782,1780614657000,-1179.31,0.000349,30]
[424155771,1780614657000,-562.9797939,0.00034897,60]
[424155778,1780614657000,-162.5045091,0.00034897,60]
[424155790,1780614657000,-200.84032597,0.00034913,60]
[424155789,1780614657000,-196.2922681,0.00034913,60]
[424155779,1780614657000,-500.0,0.00034897,60]
[424155772,1780614657000,-554.4033122,0.00034897,60]
[424155786,1780614657000,-3690.9228,0.00034908,2]
[424155784,1780614657000,-1000.0,0.00034904,14]
[424155800,1780614657000,-800.0,0.00035068,120]
[424155785,1780614657000,-2504.2009,0.00034908,2]
[424155791,1780614657000,-155.38,0.00035,2]
[424155794,1780614657000,-1038.4812984,0.00035,7]
[424155793,1780614657000,-200.0,0.00035,120]
[424155796,1780614657000,-2504.2009,0.00035033,2]
[424155798,1780614657000,-578.0,0.00035052,30]
[424155795,1780614657000,-261.63,0.0003503,30]
[424155792,1780614657000,-388.45,0.00035,7]
[424155804,1780614657000,-248.0,0.00035092,10]
[424155801,1780614657000,-1206.0,0.00035082,10]
[424155799,1780614657000,-2021.5546,0.00035054,2]
[424155802,1780614657000,-500.0,0.00035085,120]
[424155797,1780614657000,-3690.9228,0.00035033,2]
[424155774,1780614657000,-891.1008483,0.00034897,60]
[424155783,1780614657000,-1500.0,0.000349,7]
[424155773,1780614657000,-500.0,0.00034897,60]
[424155757,1780614657000,-300.0,0.00034888,2]
[424155775,1780614657000,-500.0,0.00034897,60]
[424155803,1780614657000,-322.0,0.00035092,10]
[424155743,1780614657000,-300.0,0.00034888,2]
[424155746,1780614657000,-300.0,0.00034888,2]
[424155748,1780614657000,-300.0,0.00034888,2]
[424155752,1780614657000,-300.0,0.00034888,2]
[424155749,1780614657000,-626.51557854,0.00034888,2]
[424155751,1780614657000,-452.9387939,0.00034888,2]
[424155750,1780614657000,-300.0,0.00034888,2]
[424155745,1780614657000,-300.0,0.00034888,2]
[424155744,1780614657000,-595.33490838,0.00034888,2]
[424155747,1780614657000,-512.46109187,0.00034888,2]
[424155754,1780614657000,-300.0,0.00034888,2]
[424155764,1780614657000,-308.7320597,0.00034896,2]
[424155765,1780614657000,-719.0682452,0.00034897,60]
[424155753,1780614657000,-300.0,0.00034888,2]
[424155756,1780614657000,-300.0,0.00034888,2]
[424155755,1780614657000,-300.0,0.00034888,2]
[424155761,1780614657000,-300.0,0.00034888,2]
[424155762,1780614657000,-300.0,0.00034888,2]
[424155763,1780614657000,-300.0,0.00034888,2]
[424155760,1780614657000,-300.0,0.00034888,2]
[424155758,1780614657000,-485.24111317,0.00034888,2]
[424155759,1780614657000,-310.56504798,0.00034888,2]
[424155766,1780614657000,-967.8691092,0.00034897,60]
[424155776,1780614657000,-500.0,0.00034897,60]
[424155777,1780614657000,-890.4991091,0.00034897,60]
[424155769,1780614657000,-351.7175535,0.00034897,60]
[424155767,1780614657000,-151.8478076,0.00034897,60]
[424155768,1780614657000,-924.8490197,0.00034897,60]
[424155770,1780614657000,-500.0,0.00034897,60]
[424155806,1780614657000,-1707.67,0.000351,30]
[424155835,1780614657000,-245.0,0.00035369,30]
[424155816,1780614657000,-1306.29674353,0.0003524,2]
[424155842,1780614657000,-183.0,0.00035387,30]
[424155852,1780614657000,-1817.868299,0.00035481,30]
[424155853,1780614657000,-1817.868299,0.00035481,30]